[Event "Titled Tuesday Blitz February 22 Late 2022"]
[White "Aigner, Michael"]
[Black "Kohler, Aran"]
[WhiteFideId "2017288"]
[BlackFideId "1002856"]
[WhiteElo "2405"]
[BlackElo "2250"]
[Result "1-0"]
[Round "05"]
[TimeControl "180+1"]
[Date "2022.02.23"]
[WhiteClock "0:00:48"]
[BlackClock "0:00:08"]

1. e4 {[%clk 0:03:00]}  c6 {[%clk 0:02:59]} 2. Nc3 {[%clk 0:03:00]}  d5 {[%clk 0:02:59]} 3. d4 {[%clk 0:03:00]}  dxe4 {[%clk 0:02:58]} 4. Nxe4 {[%clk 0:03:01]}  Bf5 {[%clk 0:02:58]} 5. Ng3 {[%clk 0:03:01]}  Bg6 {[%clk 0:02:58]} 6. h4 {[%clk 0:03:02]}  h6 {[%clk 0:02:58]} 7. Nf3 {[%clk 0:03:00]}  Nd7 {[%clk 0:02:57]} 8. h5 {[%clk 0:03:01]}  Bh7 {[%clk 0:02:57]} 9. Bd3 {[%clk 0:03:01]}  Ngf6 {[%clk 0:02:57]} 10. Bxh7 {[%clk 0:03:01]}  Nxh7 {[%clk 0:02:58]} 11. Bd2 {[%clk 0:02:57]}  e6 {[%clk 0:02:58]} 12. Qe2 {[%clk 0:02:52]}  a5 {[%clk 0:02:55]} 13. O-O-O {[%clk 0:02:52]}  Be7 {[%clk 0:02:56]} 14. Ne5 {[%clk 0:02:50]}  Nxe5 {[%clk 0:02:32]} 15. dxe5 {[%clk 0:02:49]}  Qc7 {[%clk 0:02:27]} 16. f4 {[%clk 0:02:45]}  O-O {[%clk 0:02:26]} 17. Ne4 {[%clk 0:02:39]}  Rad8 {[%clk 0:02:14]} 18. Be3 {[%clk 0:02:37]}  Rd5 {[%clk 0:02:10]} 19. c4 {[%clk 0:02:35]}  Rxd1+ {[%clk 0:02:08]} 20. Rxd1 {[%clk 0:02:35]}  Rd8 {[%clk 0:02:08]} 21. g4 {[%clk 0:02:35]}  Rxd1+ {[%clk 0:02:05]} 22. Qxd1 {[%clk 0:02:35]}  f5 {[%clk 0:01:13]} 23. gxf5 {[%clk 0:02:30]}  exf5 {[%clk 0:01:12]} 24. Nc5 {[%clk 0:02:19]}  Nf8 {[%clk 0:01:07]} 25. Qd3 {[%clk 0:02:08]}  Bxc5 {[%clk 0:00:58]} 26. Bxc5 {[%clk 0:02:07]}  Qd7 {[%clk 0:00:58]} 27. Kc2 {[%clk 0:01:49]}  Qxd3+ {[%clk 0:00:46]} 28. Kxd3 {[%clk 0:01:50]}  Ne6 {[%clk 0:00:46]} 29. Be3 {[%clk 0:01:50]}  Kf7 {[%clk 0:00:40]} 30. b3 {[%clk 0:01:49]}  g6 {[%clk 0:00:39]} 31. hxg6+ {[%clk 0:01:48]}  Kxg6 {[%clk 0:00:39]} 32. Ke2 {[%clk 0:01:49]}  h5 {[%clk 0:00:37]} 33. Kf3 {[%clk 0:01:49]}  h4 {[%clk 0:00:34]} 34. Bd2 {[%clk 0:01:40]}  Nd4+ {[%clk 0:00:22]} 35. Kg2 {[%clk 0:01:38]}  b6 {[%clk 0:00:21]} 36. Be3 {[%clk 0:01:32]}  c5 {[%clk 0:00:21]} 37. Kh3 {[%clk 0:01:29]}  Nc2 {[%clk 0:00:18]} 38. Bf2 {[%clk 0:01:21]}  Kf7 {[%clk 0:00:18]} 39. Kxh4 {[%clk 0:01:20]}  Ke6 {[%clk 0:00:18]} 40. Kg3 {[%clk 0:01:08]}  Nb4 {[%clk 0:00:19]} 41. a4 {[%clk 0:01:08]}  Nd3 {[%clk 0:00:19]} 42. Be3 {[%clk 0:01:04]}  Ne1 {[%clk 0:00:17]} 43. Kf2 {[%clk 0:01:02]}  Nc2 {[%clk 0:00:17]} 44. Ke2 {[%clk 0:00:54]}  Na1 {[%clk 0:00:17]} 45. Kd2 {[%clk 0:00:54]}  Nxb3+ {[%clk 0:00:18]} 46. Kc3 {[%clk 0:00:53]}  Nd4 {[%clk 0:00:12]} 47. Bxd4 {[%clk 0:00:53]}  cxd4+ {[%clk 0:00:12]} 48. Kxd4 {[%clk 0:00:54]}  Kd7 {[%clk 0:00:11]} 49. Kd5 {[%clk 0:00:54]}  Ke7 {[%clk 0:00:09]} 50. e6 {[%clk 0:00:53]}  Ke8 {[%clk 0:00:07]} 51. Ke5 {[%clk 0:00:53]}  Kd8 {[%clk 0:00:06]} 52. Kxf5 {[%clk 0:00:53]}  Ke7 {[%clk 0:00:07]} 53. Ke5 {[%clk 0:00:54]}  Ke8 {[%clk 0:00:07]} 54. f5 {[%clk 0:00:54]}  Ke7 {[%clk 0:00:07]} 55. f6+ {[%clk 0:00:52]}  Ke8 {[%clk 0:00:07]} 56. Kd5 {[%clk 0:00:52]}  Kd8 {[%clk 0:00:07]} 57. Kc6 {[%clk 0:00:53]}  b5 {[%clk 0:00:06]} 58. Kxb5 {[%clk 0:00:52]}  Ke8 {[%clk 0:00:05]} 59. Kxa5 {[%clk 0:00:53]}  Kf8 {[%clk 0:00:06]} 60. Kb6 {[%clk 0:00:53]}  Ke8 {[%clk 0:00:06]} 61. Kc7 {[%clk 0:00:52]}  Kf8 {[%clk 0:00:07]} 62. a5 {[%clk 0:00:53]}  Ke8 {[%clk 0:00:07]} 63. a6 {[%clk 0:00:53]}  Kf8 {[%clk 0:00:08]} 64. a7 {[%clk 0:00:53]}  Ke8 {[%clk 0:00:09]} 65. c5 {[%clk 0:00:51]}  Kf8 {[%clk 0:00:08]} 66. c6 {[%clk 0:00:51]}  Ke8 {[%clk 0:00:08]} 67. Kd6 {[%clk 0:00:51]}  Kf8 {[%clk 0:00:08]} 68. c7 {[%clk 0:00:51]}  Ke8 {[%clk 0:00:08]} 69. a8=Q# {[%clk 0:00:48]} 1-0


[Site "https://www.chess.com"]

[Event "Titled Tuesday Blitz February 22 Late 2022"]
[White "Ansh M Shah"]
[Black "Brunner, Nicolas"]
[WhiteFideId "25033379"]
[BlackFideId "620246"]
[WhiteElo "1819"]
[BlackElo "2372"]
[Result "1-0"]
[Round "05"]
[TimeControl "180+1"]
[Date "2022.02.23"]
[WhiteClock "0:01:51"]
[BlackClock "0:01:14"]

1. d4 {[%clk 0:03:00]}  d5 {[%clk 0:02:59]} 2. c4 {[%clk 0:03:00]}  e6 {[%clk 0:02:59]} 3. g3 {[%clk 0:02:59]}  Nf6 {[%clk 0:02:58]} 4. Bg2 {[%clk 0:03:00]}  dxc4 {[%clk 0:02:56]} 5. Nf3 {[%clk 0:03:00]}  c5 {[%clk 0:02:55]} 6. O-O {[%clk 0:02:59]}  Nc6 {[%clk 0:02:54]} 7. dxc5 {[%clk 0:02:45]}  Qxd1 {[%clk 0:02:52]} 8. Rxd1 {[%clk 0:02:46]}  Bxc5 {[%clk 0:02:52]} 9. Nbd2 {[%clk 0:02:44]}  c3 {[%clk 0:02:52]} 10. bxc3 {[%clk 0:02:43]}  O-O {[%clk 0:02:52]} 11. Nb3 {[%clk 0:02:40]}  Be7 {[%clk 0:02:52]} 12. Nfd4 {[%clk 0:02:32]}  Bd7 {[%clk 0:02:50]} 13. Nb5 {[%clk 0:02:23]}  Rfc8 {[%clk 0:02:33]} 14. Bb2 {[%clk 0:02:20]}  a6 {[%clk 0:02:18]} 15. Nd6 {[%clk 0:02:19]}  Bxd6 {[%clk 0:02:14]} 16. Rxd6 {[%clk 0:02:20]}  Rc7 {[%clk 0:02:06]} 17. Rad1 {[%clk 0:02:14]}  Ne5 {[%clk 0:02:04]} 18. Na5 {[%clk 0:02:09]}  Bc6 {[%clk 0:01:52]} 19. Nxc6 {[%clk 0:01:54]}  Nxc6 {[%clk 0:01:26]} 20. Bxc6 {[%clk 0:01:53]}  Rxc6 {[%clk 0:01:14]} 21. Rd8+ {[%clk 0:01:51]} 1-0


[Site "https://www.chess.com"]

[Event "Titled Tuesday Blitz February 22 Late 2022"]
[White "Ardila, Oscar Humberto"]
[Black "Przybylski, Wojciech"]
[WhiteFideId "4404742"]
[BlackFideId "1117599"]
[WhiteElo "1898"]
[BlackElo "2133"]
[Result "0-1"]
[Round "05"]
[TimeControl "180+1"]
[Date "2022.02.23"]
[WhiteClock "0:00:02"]
[BlackClock "0:00:05"]

1. d4 {[%clk 0:02:59]}  d5 {[%clk 0:02:56]} 2. c4 {[%clk 0:02:58]}  dxc4 {[%clk 0:02:56]} 3. Qa4+ {[%clk 0:02:57]}  c6 {[%clk 0:02:54]} 4. Qxc4 {[%clk 0:02:56]}  Nf6 {[%clk 0:02:54]} 5. Nf3 {[%clk 0:02:55]}  Bf5 {[%clk 0:02:53]} 6. Nc3 {[%clk 0:02:53]}  Nbd7 {[%clk 0:02:53]} 7. e3 {[%clk 0:02:53]}  e6 {[%clk 0:02:53]} 8. Be2 {[%clk 0:02:51]}  Be7 {[%clk 0:02:53]} 9. O-O {[%clk 0:02:50]}  O-O {[%clk 0:02:48]} 10. Rd1 {[%clk 0:02:48]}  h6 {[%clk 0:02:44]} 11. Qb3 {[%clk 0:02:48]}  Qc7 {[%clk 0:02:43]} 12. h3 {[%clk 0:02:46]}  Rfd8 {[%clk 0:02:41]} 13. Bd2 {[%clk 0:02:45]}  Rac8 {[%clk 0:02:40]} 14. Rac1 {[%clk 0:02:45]}  Qb8 {[%clk 0:02:40]} 15. a3 {[%clk 0:02:41]}  Bh7 {[%clk 0:02:22]} 16. Be1 {[%clk 0:02:38]}  Bd6 {[%clk 0:02:07]} 17. Na4 {[%clk 0:02:28]}  e5 {[%clk 0:02:05]} 18. Nc5 {[%clk 0:02:07]}  exd4 {[%clk 0:01:57]} 19. Nxd7 {[%clk 0:02:04]}  Rxd7 {[%clk 0:01:56]} 20. Nxd4 {[%clk 0:02:04]}  Rcd8 {[%clk 0:01:52]} 21. Bf3 {[%clk 0:01:36]}  Ne4 {[%clk 0:01:41]} 22. Bc3 {[%clk 0:01:04]}  Bh2+ {[%clk 0:01:36]} 23. Kf1 {[%clk 0:01:02]}  Nxc3 {[%clk 0:01:31]} 24. Qxc3 {[%clk 0:00:53]}  Be5 {[%clk 0:01:30]} 25. Qc5 {[%clk 0:00:46]}  Bf6 {[%clk 0:01:25]} 26. b4 {[%clk 0:00:40]}  a6 {[%clk 0:01:18]} 27. a4 {[%clk 0:00:39]}  Qh2 {[%clk 0:01:17]} 28. b5 {[%clk 0:00:24]}  cxb5 {[%clk 0:01:13]} 29. axb5 {[%clk 0:00:24]}  Bg6 {[%clk 0:01:00]} 30. Ke2 {[%clk 0:00:21]}  Be7 {[%clk 0:00:45]} 31. Qb6 {[%clk 0:00:17]}  Qe5 {[%clk 0:00:42]} 32. bxa6 {[%clk 0:00:15]}  bxa6 {[%clk 0:00:38]} 33. Kf1 {[%clk 0:00:14]}  Rd6 {[%clk 0:00:33]} 34. Qc5 {[%clk 0:00:13]}  Qxc5 {[%clk 0:00:30]} 35. Rxc5 {[%clk 0:00:10]}  Rb8 {[%clk 0:00:15]} 36. Rc6 {[%clk 0:00:10]}  a5 {[%clk 0:00:07]} 37. Rxd6 {[%clk 0:00:09]}  Bxd6 {[%clk 0:00:07]} 38. Kg1 {[%clk 0:00:09]}  Bf8 {[%clk 0:00:06]} 39. Nc6 {[%clk 0:00:09]}  Rb5 {[%clk 0:00:05]} 40. Rd5 {[%clk 0:00:08]}  Rxd5 {[%clk 0:00:04]} 41. Bxd5 {[%clk 0:00:08]}  a4 {[%clk 0:00:05]} 42. Kf1 {[%clk 0:00:08]}  Bd3+ {[%clk 0:00:04]} 43. Ke1 {[%clk 0:00:08]}  g6 {[%clk 0:00:04]} 44. Kd2 {[%clk 0:00:08]}  Bf1 {[%clk 0:00:04]} 45. Nd4 {[%clk 0:00:06]}  Ba6 {[%clk 0:00:04]} 46. Kc3 {[%clk 0:00:06]}  a3 {[%clk 0:00:04]} 47. Ba2 {[%clk 0:00:06]}  Kg7 {[%clk 0:00:05]} 48. f4 {[%clk 0:00:07]}  Bd6 {[%clk 0:00:04]} 49. g4 {[%clk 0:00:07]}  Kf6 {[%clk 0:00:04]} 50. h4 {[%clk 0:00:07]}  Bb7 {[%clk 0:00:03]} 51. g5+ {[%clk 0:00:07]}  hxg5 {[%clk 0:00:03]} 52. hxg5+ {[%clk 0:00:08]}  Kg7 {[%clk 0:00:03]} 53. Nb5 {[%clk 0:00:08]}  Be7 {[%clk 0:00:03]} 54. Nd4 {[%clk 0:00:06]}  Bc5 {[%clk 0:00:03]} 55. Nb3 {[%clk 0:00:05]}  Bxe3 {[%clk 0:00:02]} 56. Kb4 {[%clk 0:00:03]}  Bxf4 {[%clk 0:00:03]} 57. Kxa3 {[%clk 0:00:03]}  Bxg5 {[%clk 0:00:03]} 58. Kb4 {[%clk 0:00:04]}  Be7+ {[%clk 0:00:03]} 59. Kb5 {[%clk 0:00:04]}  Bd5 {[%clk 0:00:03]} 60. Nc5 {[%clk 0:00:05]}  Bxa2 {[%clk 0:00:02]} 61. Ne4 {[%clk 0:00:04]}  Be6 {[%clk 0:00:02]} 62. Kc6 {[%clk 0:00:04]}  Bf6 {[%clk 0:00:03]} 63. Ng3 {[%clk 0:00:04]}  g5 {[%clk 0:00:03]} 64. Ne2 {[%clk 0:00:04]}  Kg6 {[%clk 0:00:04]} 65. Kd6 {[%clk 0:00:04]}  Bf5 {[%clk 0:00:04]} 66. Ng3 {[%clk 0:00:04]}  Bg7 {[%clk 0:00:05]} 67. Ke7 {[%clk 0:00:03]}  f6 {[%clk 0:00:04]} 68. Ke8 {[%clk 0:00:02]}  Bd3 {[%clk 0:00:04]} 69. Ke7 {[%clk 0:00:02]}  f5 {[%clk 0:00:05]} 0-1


[Site "https://www.chess.com"]

[Event "Titled Tuesday Blitz February 22 Late 2022"]
[White "Bachmann, Axel"]
[Black "Tang, Andrew"]
[WhiteFideId "3700488"]
[BlackFideId "2059630"]
[WhiteElo "2642"]
[BlackElo "2584"]
[Result "1/2-1/2"]
[Round "05"]
[TimeControl "180+1"]
[Date "2022.02.22"]
[WhiteClock "0:00:05"]
[BlackClock "0:00:05"]

1. Nf3 {[%clk 0:02:59]}  d5 {[%clk 0:02:54]} 2. e3 {[%clk 0:02:59]}  Nf6 {[%clk 0:02:53]} 3. c4 {[%clk 0:02:59]}  e6 {[%clk 0:02:54]} 4. Nc3 {[%clk 0:02:57]}  Bd6 {[%clk 0:02:54]} 5. b3 {[%clk 0:02:50]}  O-O {[%clk 0:02:53]} 6. Bb2 {[%clk 0:02:50]}  b6 {[%clk 0:02:54]} 7. cxd5 {[%clk 0:02:44]}  exd5 {[%clk 0:02:55]} 8. Rc1 {[%clk 0:02:44]}  a6 {[%clk 0:02:55]} 9. g3 {[%clk 0:02:37]}  Bb7 {[%clk 0:02:46]} 10. d4 {[%clk 0:02:30]}  Nbd7 {[%clk 0:02:46]} 11. Bg2 {[%clk 0:02:29]}  Re8 {[%clk 0:02:46]} 12. O-O {[%clk 0:02:28]}  Qe7 {[%clk 0:02:40]} 13. Re1 {[%clk 0:02:26]}  Rad8 {[%clk 0:02:37]} 14. Re2 {[%clk 0:02:26]}  h5 {[%clk 0:02:29]} 15. Rec2 {[%clk 0:02:25]}  Ng4 {[%clk 0:02:10]} 16. Nh4 {[%clk 0:02:05]}  Qe6 {[%clk 0:01:55]} 17. Ne2 {[%clk 0:01:52]}  Ndf6 {[%clk 0:01:42]} 18. Nf4 {[%clk 0:01:37]}  Qd7 {[%clk 0:01:42]} 19. h3 {[%clk 0:01:30]}  g5 {[%clk 0:01:07]} 20. hxg4 {[%clk 0:01:14]}  gxh4 {[%clk 0:00:28]} 21. g5 {[%clk 0:01:15]}  Bxf4 {[%clk 0:00:08]} 22. gxf4 {[%clk 0:00:49]}  Ng4 {[%clk 0:00:04]} 23. Rxc7 {[%clk 0:00:48]}  Qe6 {[%clk 0:00:04]} 24. Rxb7 {[%clk 0:00:42]}  Nxf2 {[%clk 0:00:02]} 25. Kxf2 {[%clk 0:00:38]}  Qxe3+ {[%clk 0:00:02]} 26. Kf1 {[%clk 0:00:39]}  h3 {[%clk 0:00:03]} 27. Qxh5 {[%clk 0:00:31]}  hxg2+ {[%clk 0:00:03]} 28. Kxg2 {[%clk 0:00:32]}  Qd2+ {[%clk 0:00:03]} 29. Kh1 {[%clk 0:00:31]}  Re1+ {[%clk 0:00:01]} 30. Rxe1 {[%clk 0:00:30]}  Qxe1+ {[%clk 0:00:02]} 31. Kg2 {[%clk 0:00:30]}  Qd2+ {[%clk 0:00:01]} 32. Kf1 {[%clk 0:00:16]}  Qxf4+ {[%clk 0:00:02]} 33. Kg2 {[%clk 0:00:13]}  Rc8 {[%clk 0:00:02]} 34. Qe2 {[%clk 0:00:07]}  Qxg5+ {[%clk 0:00:02]} 35. Kh1 {[%clk 0:00:08]}  Qh4+ {[%clk 0:00:01]} 36. Kg1 {[%clk 0:00:09]}  Kh8 {[%clk 0:00:01]} 37. Qe5+ {[%clk 0:00:08]}  f6 {[%clk 0:00:01]} 38. Qh2 {[%clk 0:00:06]}  Qxh2+ {[%clk 0:00:02]} 39. Kxh2 {[%clk 0:00:07]}  Rc2+ {[%clk 0:00:02]} 40. Kg3 {[%clk 0:00:08]}  Rxb2 {[%clk 0:00:03]} 41. Rxb6 {[%clk 0:00:09]}  Rxa2 {[%clk 0:00:03]} 42. Rxf6 {[%clk 0:00:09]}  Ra3 {[%clk 0:00:04]} 43. Kf4 {[%clk 0:00:10]}  Rxb3 {[%clk 0:00:02]} 44. Rxa6 {[%clk 0:00:09]}  Kg7 {[%clk 0:00:03]} 45. Ke5 {[%clk 0:00:08]}  Kf7 {[%clk 0:00:03]} 46. Kxd5 {[%clk 0:00:08]}  Ke7 {[%clk 0:00:04]} 47. Ra7+ {[%clk 0:00:09]}  Kd8 {[%clk 0:00:04]} 48. Kc6 {[%clk 0:00:09]}  Rc3+ {[%clk 0:00:05]} 49. Kd6 {[%clk 0:00:09]}  Ke8 {[%clk 0:00:05]} 50. d5 {[%clk 0:00:09]}  Rb3 {[%clk 0:00:04]} 51. Ra8+ {[%clk 0:00:09]}  Kf7 {[%clk 0:00:05]} 52. Kc7 {[%clk 0:00:08]}  Rc3+ {[%clk 0:00:05]} 53. Kd7 {[%clk 0:00:08]}  Rb3 {[%clk 0:00:05]} 54. d6 {[%clk 0:00:09]}  Rb1 {[%clk 0:00:04]} 55. Kc7 {[%clk 0:00:08]}  Rc1+ {[%clk 0:00:03]} 56. Kd8 {[%clk 0:00:09]}  Ke6 {[%clk 0:00:02]} 57. d7 {[%clk 0:00:09]}  Rd1 {[%clk 0:00:03]} 58. Ra6+ {[%clk 0:00:09]}  Kf7 {[%clk 0:00:04]} 59. Kc7 {[%clk 0:00:08]}  Ke7 {[%clk 0:00:04]} 60. Re6+ {[%clk 0:00:04]}  Kxe6 {[%clk 0:00:04]} 61. d8=Q {[%clk 0:00:05]}  Rxd8 {[%clk 0:00:05]} 62. Kxd8 {[%clk 0:00:05]} 1/2-1/2


[Site "https://www.chess.com"]

[Event "Titled Tuesday Blitz February 22 Late 2022"]
[White "Barp, Alberto"]
[Black "Chernomordik, Pavel"]
[WhiteFideId "872555"]
[BlackFideId "2804530"]
[WhiteElo "2229"]
[BlackElo "2249"]
[Result "1-0"]
[Round "05"]
[TimeControl "180+1"]
[Date "2022.02.23"]
[WhiteClock "0:00:07"]
[BlackClock "0:00:02"]

1. d4 {[%clk 0:03:00]}  g6 {[%clk 0:02:56]} 2. Nf3 {[%clk 0:02:56]}  Bg7 {[%clk 0:02:56]} 3. Nbd2 {[%clk 0:02:55]}  d6 {[%clk 0:02:55]} 4. e4 {[%clk 0:02:52]}  Nf6 {[%clk 0:02:54]} 5. e5 {[%clk 0:02:49]}  dxe5 {[%clk 0:02:53]} 6. dxe5 {[%clk 0:02:21]}  Ng4 {[%clk 0:02:41]} 7. Qe2 {[%clk 0:02:16]}  Nc6 {[%clk 0:02:36]} 8. Nc4 {[%clk 0:02:16]}  Qd5 {[%clk 0:02:19]} 9. Bf4 {[%clk 0:02:10]}  Nd4 {[%clk 0:02:16]} 10. Nxd4 {[%clk 0:02:06]}  Qxd4 {[%clk 0:02:16]} 11. Bg3 {[%clk 0:02:04]}  b5 {[%clk 0:02:03]} 12. c3 {[%clk 0:01:44]}  Qxc4 {[%clk 0:01:23]} 13. Qf3 {[%clk 0:01:44]}  Qc5 {[%clk 0:01:09]} 14. Qxa8 {[%clk 0:01:43]}  O-O {[%clk 0:01:08]} 15. Qe4 {[%clk 0:01:39]}  Bxe5 {[%clk 0:01:04]} 16. Qb4 {[%clk 0:00:39]}  Qxb4 {[%clk 0:00:52]} 17. cxb4 {[%clk 0:00:40]}  Bxb2 {[%clk 0:00:52]} 18. Rb1 {[%clk 0:00:40]}  Bc3+ {[%clk 0:00:51]} 19. Ke2 {[%clk 0:00:41]}  Bf5 {[%clk 0:00:41]} 20. Rb3 {[%clk 0:00:40]}  Be5 {[%clk 0:00:35]} 21. h3 {[%clk 0:00:36]}  Bxg3 {[%clk 0:00:31]} 22. Rxg3 {[%clk 0:00:32]}  Nf6 {[%clk 0:00:30]} 23. Ke1 {[%clk 0:00:28]}  Nd5 {[%clk 0:00:27]} 24. a3 {[%clk 0:00:27]}  c6 {[%clk 0:00:27]} 25. Bd3 {[%clk 0:00:24]}  Be6 {[%clk 0:00:26]} 26. Be4 {[%clk 0:00:23]}  Nb6 {[%clk 0:00:23]} 27. Rd3 {[%clk 0:00:21]}  Nc4 {[%clk 0:00:23]} 28. Bxc6 {[%clk 0:00:20]}  Ne5 {[%clk 0:00:23]} 29. Be4 {[%clk 0:00:16]}  Nxd3+ {[%clk 0:00:22]} 30. Bxd3 {[%clk 0:00:17]}  Rd8 {[%clk 0:00:22]} 31. Bxb5 {[%clk 0:00:16]}  Rd4 {[%clk 0:00:17]} 32. Ke2 {[%clk 0:00:15]}  Bc4+ {[%clk 0:00:15]} 33. Bxc4 {[%clk 0:00:15]}  Rxc4 {[%clk 0:00:15]} 34. Kd3 {[%clk 0:00:16]}  Rc7 {[%clk 0:00:15]} 35. Re1 {[%clk 0:00:15]}  Kf8 {[%clk 0:00:14]} 36. Re5 {[%clk 0:00:14]}  Ke8 {[%clk 0:00:12]} 37. a4 {[%clk 0:00:13]}  Kd7 {[%clk 0:00:12]} 38. Rd5+ {[%clk 0:00:13]}  Ke6 {[%clk 0:00:11]} 39. Ra5 {[%clk 0:00:10]}  Kd6 {[%clk 0:00:10]} 40. Kd4 {[%clk 0:00:10]}  f6 {[%clk 0:00:10]} 41. Ra6+ {[%clk 0:00:10]}  Kd7 {[%clk 0:00:10]} 42. b5 {[%clk 0:00:11]}  e5+ {[%clk 0:00:09]} 43. Kd5 {[%clk 0:00:11]}  Kc8 {[%clk 0:00:07]} 44. Rxf6 {[%clk 0:00:11]}  Rd7+ {[%clk 0:00:04]} 45. Kxe5 {[%clk 0:00:11]}  Kb7 {[%clk 0:00:04]} 46. Rd6 {[%clk 0:00:10]}  Re7+ {[%clk 0:00:03]} 47. Kf4 {[%clk 0:00:10]}  Rf7+ {[%clk 0:00:04]} 48. Kg3 {[%clk 0:00:10]}  Kc7 {[%clk 0:00:03]} 49. Re6 {[%clk 0:00:09]}  Rd7 {[%clk 0:00:01]} 50. a5 {[%clk 0:00:10]}  Rd5 {[%clk 0:00:01]} 51. Re7+ {[%clk 0:00:09]}  Kd6 {[%clk 0:00:01]} 52. Rxh7 {[%clk 0:00:07]}  Rxb5 {[%clk 0:00:02]} 53. Rxa7 {[%clk 0:00:07]}  g5 {[%clk 0:00:02]} 54. Kg4 {[%clk 0:00:07]}  Kc5 {[%clk 0:00:02]} 55. Kxg5 {[%clk 0:00:07]} 1-0


[Site "https://www.chess.com"]

[Event "Titled Tuesday Blitz February 22 Late 2022"]
[White "Bodnar, Nikolay"]
[Black "Goryachkina, Aleksandra"]
[WhiteFideId "14106469"]
[BlackFideId "4147103"]
[WhiteElo "2296"]
[BlackElo "2426"]
[Result "0-1"]
[Round "05"]
[TimeControl "180+1"]
[Date "2022.02.23"]
[WhiteClock "0:00:27"]
[BlackClock "0:00:02"]

1. e4 {[%clk 0:03:00]}  c5 {[%clk 0:02:58]} 2. Nf3 {[%clk 0:03:01]}  e6 {[%clk 0:02:58]} 3. d4 {[%clk 0:03:01]}  cxd4 {[%clk 0:02:58]} 4. Nxd4 {[%clk 0:03:01]}  Nf6 {[%clk 0:02:58]} 5. Nc3 {[%clk 0:03:01]}  Nc6 {[%clk 0:02:58]} 6. Ndb5 {[%clk 0:03:01]}  d6 {[%clk 0:02:58]} 7. Bf4 {[%clk 0:03:02]}  e5 {[%clk 0:02:58]} 8. Bg5 {[%clk 0:03:02]}  a6 {[%clk 0:02:58]} 9. Na3 {[%clk 0:03:02]}  b5 {[%clk 0:02:58]} 10. Nab1 {[%clk 0:03:03]}  Be7 {[%clk 0:02:53]} 11. Bxf6 {[%clk 0:03:00]}  Bxf6 {[%clk 0:02:53]} 12. a4 {[%clk 0:03:00]}  b4 {[%clk 0:02:44]} 13. Nd5 {[%clk 0:03:01]}  O-O {[%clk 0:02:43]} 14. Bc4 {[%clk 0:02:53]}  Be6 {[%clk 0:02:41]} 15. O-O {[%clk 0:02:47]}  Bg5 {[%clk 0:02:40]} 16. c3 {[%clk 0:02:44]}  a5 {[%clk 0:02:22]} 17. cxb4 {[%clk 0:02:38]}  Nxb4 {[%clk 0:02:18]} 18. Nbc3 {[%clk 0:02:32]}  Kh8 {[%clk 0:02:12]} 19. Nb5 {[%clk 0:02:13]}  Rc8 {[%clk 0:02:07]} 20. b3 {[%clk 0:02:10]}  Bxd5 {[%clk 0:01:39]} 21. Bxd5 {[%clk 0:02:10]}  Qb6 {[%clk 0:01:33]} 22. Bc4 {[%clk 0:02:04]}  Rcd8 {[%clk 0:01:27]} 23. Qg4 {[%clk 0:02:02]}  Bh6 {[%clk 0:01:19]} 24. Rad1 {[%clk 0:02:01]}  g6 {[%clk 0:01:08]} 25. Qh4 {[%clk 0:01:54]}  Bg7 {[%clk 0:00:58]} 26. Qe7 {[%clk 0:01:51]}  Nc6 {[%clk 0:00:55]} 27. Rxd6 {[%clk 0:01:50]}  Qc5 {[%clk 0:00:19]} 28. Qc7 {[%clk 0:01:49]}  Rc8 {[%clk 0:00:18]} 29. Qb7 {[%clk 0:01:39]}  Nd4 {[%clk 0:00:15]} 30. Rd5 {[%clk 0:01:34]}  Qb4 {[%clk 0:00:12]} 31. Nd6 {[%clk 0:01:17]}  Qxb7 {[%clk 0:00:04]} 32. Nxb7 {[%clk 0:01:18]}  f5 {[%clk 0:00:03]} 33. exf5 {[%clk 0:01:14]}  gxf5 {[%clk 0:00:02]} 34. Rxa5 {[%clk 0:01:05]}  Rc7 {[%clk 0:00:02]} 35. Nd6 {[%clk 0:01:04]}  h6 {[%clk 0:00:02]} 36. h4 {[%clk 0:00:55]}  Rb8 {[%clk 0:00:01]} 37. Nf7+ {[%clk 0:00:54]}  Kh7 {[%clk 0:00:01]} 38. Nxe5 {[%clk 0:00:50]}  Nxb3 {[%clk 0:00:01]} 39. Bxb3 {[%clk 0:00:47]}  Rxb3 {[%clk 0:00:02]} 40. Nf3 {[%clk 0:00:46]}  f4 {[%clk 0:00:01]} 41. Rf5 {[%clk 0:00:45]}  Rb4 {[%clk 0:00:01]} 42. a5 {[%clk 0:00:44]}  Rc2 {[%clk 0:00:01]} 43. h5 {[%clk 0:00:35]}  Ra2 {[%clk 0:00:01]} 44. Rd1 {[%clk 0:00:32]}  Rba4 {[%clk 0:00:02]} 45. Rd7 {[%clk 0:00:31]}  Rxa5 {[%clk 0:00:01]} 46. Rff7 {[%clk 0:00:31]}  Ra1+ {[%clk 0:00:01]} 47. Kh2 {[%clk 0:00:32]}  Rxh5+ {[%clk 0:00:01]} 48. Nh4 {[%clk 0:00:27]}  Rxh4# {[%clk 0:00:02]} 0-1


[Site "https://www.chess.com"]

[Event "Titled Tuesday Blitz February 22 Late 2022"]
[White "Boros, Denes"]
[Black "Lewtak, Damian"]
[WhiteFideId "722340"]
[BlackFideId "1141724"]
[WhiteElo "2464"]
[BlackElo "2361"]
[Result "0-1"]
[Round "05"]
[TimeControl "180+1"]
[Date "2022.02.22"]
[WhiteClock "0:00:14"]
[BlackClock "0:00:20"]

1. e4 {[%clk 0:03:00]}  c5 {[%clk 0:02:52]} 2. Nc3 {[%clk 0:03:01]}  a6 {[%clk 0:02:45]} 3. d4 {[%clk 0:03:00]}  cxd4 {[%clk 0:02:43]} 4. Qxd4 {[%clk 0:03:01]}  Nc6 {[%clk 0:02:43]} 5. Qe3 {[%clk 0:03:01]}  b5 {[%clk 0:02:43]} 6. Bd2 {[%clk 0:02:59]}  b4 {[%clk 0:02:42]} 7. Nd5 {[%clk 0:02:57]}  e6 {[%clk 0:02:42]} 8. Nb6 {[%clk 0:02:53]}  Rb8 {[%clk 0:02:42]} 9. Nxc8 {[%clk 0:02:53]}  Qxc8 {[%clk 0:02:43]} 10. Nf3 {[%clk 0:02:51]}  Nge7 {[%clk 0:02:39]} 11. Be2 {[%clk 0:02:47]}  Ng6 {[%clk 0:02:39]} 12. O-O {[%clk 0:02:47]}  Bd6 {[%clk 0:02:38]} 13. Qd3 {[%clk 0:02:43]}  Qc7 {[%clk 0:02:34]} 14. Qxa6 {[%clk 0:02:36]}  O-O {[%clk 0:02:12]} 15. Qc4 {[%clk 0:02:22]}  Nge5 {[%clk 0:02:07]} 16. Nxe5 {[%clk 0:02:22]}  Bxe5 {[%clk 0:02:08]} 17. f4 {[%clk 0:02:12]}  Bxb2 {[%clk 0:02:06]} 18. Rab1 {[%clk 0:02:12]}  Qa7+ {[%clk 0:01:44]} 19. Kh1 {[%clk 0:02:11]}  Qd4 {[%clk 0:01:44]} 20. Qd3 {[%clk 0:01:53]}  Qxd3 {[%clk 0:01:40]} 21. Bxd3 {[%clk 0:01:52]}  Bc3 {[%clk 0:01:34]} 22. Be3 {[%clk 0:01:46]}  d5 {[%clk 0:01:26]} 23. f5 {[%clk 0:01:43]}  Ra8 {[%clk 0:01:13]} 24. fxe6 {[%clk 0:01:30]}  fxe6 {[%clk 0:01:14]} 25. Rxf8+ {[%clk 0:01:30]}  Rxf8 {[%clk 0:01:03]} 26. Bb5 {[%clk 0:01:27]}  d4 {[%clk 0:00:48]} 27. Bg5 {[%clk 0:01:21]}  Ne5 {[%clk 0:00:45]} 28. Ba4 {[%clk 0:01:04]}  Rf2 {[%clk 0:00:36]} 29. Bb3 {[%clk 0:00:56]}  Kf7 {[%clk 0:00:33]} 30. Kg1 {[%clk 0:00:56]}  Re2 {[%clk 0:00:33]} 31. Rf1+ {[%clk 0:00:41]}  Kg6 {[%clk 0:00:33]} 32. Be7 {[%clk 0:00:25]}  Rxe4 {[%clk 0:00:32]} 33. Bxe6 {[%clk 0:00:24]}  Nf3+ {[%clk 0:00:33]} 34. Rxf3 {[%clk 0:00:24]}  Rxe6 {[%clk 0:00:34]} 35. Bc5 {[%clk 0:00:23]}  Ra6 {[%clk 0:00:28]} 36. Rg3+ {[%clk 0:00:20]}  Kf7 {[%clk 0:00:29]} 37. Rf3+ {[%clk 0:00:20]}  Ke6 {[%clk 0:00:28]} 38. Rd3 {[%clk 0:00:20]}  Kd5 {[%clk 0:00:27]} 39. Bf8 {[%clk 0:00:17]}  Rxa2 {[%clk 0:00:24]} 40. Bxg7 {[%clk 0:00:18]}  Rxc2 {[%clk 0:00:24]} 41. Rd1 {[%clk 0:00:15]}  b3 {[%clk 0:00:23]} 42. Bf8 {[%clk 0:00:14]}  Kc4 {[%clk 0:00:20]} 43. Ba3 {[%clk 0:00:15]}  d3 {[%clk 0:00:20]} 44. h4 {[%clk 0:00:13]}  b2 {[%clk 0:00:20]} 45. Bxb2 {[%clk 0:00:14]}  Bxb2 {[%clk 0:00:20]} 46. Kh2 {[%clk 0:00:14]}  Kc3 {[%clk 0:00:19]} 47. Kg3 {[%clk 0:00:14]}  Rc1 {[%clk 0:00:19]} 48. Rxc1+ {[%clk 0:00:13]}  Bxc1 {[%clk 0:00:20]} 49. Kf3 {[%clk 0:00:14]}  d2 {[%clk 0:00:20]} 50. Ke2 {[%clk 0:00:14]} 0-1


[Site "https://www.chess.com"]